lending/lending_fUSD_20241007
["ID","MTS","AMOUNT","RATE_DAILY","PERIOD"]
[339995218,1728295850716,-523.6,0.00036712,2]
[339995219,1728295850725,-504.02,0.00036712,2]
[339995220,1728295850735,-500.0,0.00036712,2]
[339995221,1728295850744,-500.0,0.00036712,2]
[339995222,1728295850754,-500.0,0.00036712,2]
[339995223,1728295850764,-500.0,0.00036712,2]
[339995224,1728295850773,-500.0,0.00036712,2]
[339995225,1728295850783,-587.38,0.00036712,2]
[339995226,1728295850792,-500.0,0.00036712,2]
[339995227,1728295850802,-500.0,0.00036712,2]
[339995228,1728295850811,-500.0,0.00036712,2]
[339995229,1728295850821,-500.0,0.00036712,2]
[339995230,1728295850830,-711.71,0.00036712,2]
[339995231,1728295850841,-646.3,0.00036712,2]
[339995232,1728295850850,-500.0,0.00036712,2]
[339995233,1728295850859,-511.23,0.00036712,2]
[339995234,1728295850868,-500.0,0.00036712,2]
[339995235,1728295850878,-500.0,0.00036712,2]
[339995236,1728295850887,-619.93,0.00036712,2]
[339995237,1728295850897,-500.0,0.00036712,2]
[339995238,1728295850906,-500.0,0.00036712,2]
[339995239,1728295850915,-500.0,0.00036712,2]
[339995240,1728295850925,-500.0,0.00036712,2]
[339995241,1728295850934,-500.0,0.00036712,2]
[339995242,1728295850943,-530.54,0.00036712,2]
[339995243,1728295850953,-500.0,0.00036712,2]
[339995244,1728295850962,-500.0,0.00036712,2]
[339995245,1728295850971,-669.98,0.00036712,2]
[339995246,1728295850981,-500.0,0.00036712,2]
[339995247,1728295850991,-500.0,0.00036712,2]
[339995248,1728295851000,-1921.901947,0.00036712,7]
[339995249,1728295851009,-500.0,0.00036712,2]
[339995250,1728295851018,-618.29,0.00036712,2]
[339995251,1728295851028,-1921.901947,0.00036712,7]
[339995252,1728295851037,-526.83,0.00036712,2]
[339995253,1728295851046,-560.05,0.00036712,2]
[339995254,1728295851056,-500.0,0.00036712,2]
[339995255,1728295851064,-530.63,0.00036712,2]
[339995256,1728295851073,-500.0,0.00036712,2]
[339995257,1728295851084,-736.68,0.00036712,2]
[339995258,1728295851094,-500.0,0.00036712,2]
[339995259,1728295851107,-500.0,0.00036712,2]
[339995260,1728295851116,-500.0,0.00036712,2]
[339995261,1728295851126,-524.29,0.00036712,2]
[339995262,1728295851135,-500.0,0.00036712,2]
[339995263,1728295851145,-500.0,0.00036712,2]
[339995264,1728295851155,-500.0,0.00036712,2]
[339995265,1728295851164,-500.0,0.00036712,2]
[339995266,1728295851174,-500.0,0.00036712,2]
[339995267,1728295851183,-636.06,0.00036712,2]
[339995268,1728295851194,-889.03,0.00036712,2]
[339995269,1728295851203,-500.0,0.00036712,2]
[339995270,1728295851213,-600.6,0.00036712,2]
[339995271,1728295851223,-500.0,0.00036712,2]
[339995272,1728295851233,-500.0,0.00036712,2]
[339995273,1728295851243,-810.09,0.00036712,2]
[339995274,1728295851252,-1346.29,0.00036712,2]
[339995275,1728295851262,-500.0,0.00036712,2]
[339995276,1728295851272,-654.7,0.00036712,2]
[339995277,1728295851282,-500.0,0.00036712,2]
[339995278,1728295851292,-500.0,0.00036712,2]
[339995279,1728295851302,-500.0,0.00036712,2]
[339995280,1728295851311,-500.0,0.00036712,2]
[339995281,1728295851320,-556.24,0.00036712,2]
[339995282,1728295851329,-500.0,0.00036712,2]
[339995283,1728295851340,-500.0,0.00036712,2]
[339995284,1728295851349,-500.0,0.00036712,2]
[339995285,1728295851359,-568.77,0.00036712,2]
[339995286,1728295851368,-605.87,0.00036712,2]
[339995287,1728295851378,-954.06,0.00036712,7]
[339995288,1728295851388,-500.0,0.00036712,2]
[339995289,1728295851398,-539.65,0.00036712,2]
[339995290,1728295851407,-150.0,0.00036714,2]
[339995291,1728295851416,-150.0,0.00036718,2]
[339995292,1728295851426,-150.0,0.0003672,2]
[339995293,1728295851435,-150.0,0.00036725,2]
[339995294,1728295851444,-150.0,0.00036725,2]
[339995295,1728295851454,-150.0,0.00036726,2]
[339995296,1728295851463,-10000.0,0.00036735,7]
[339995297,1728295851473,-10000.0,0.00036735,7]
[339995298,1728295851482,-10000.0,0.00036735,7]
[339995299,1728295851492,-10000.0,0.00036735,7]
[339995300,1728295851501,-400.0,0.00036736,2]
[339995301,1728295851510,-150.0,0.00036744,2]
[339995302,1728295851519,-150.0,0.00036754,2]
[339995303,1728295851529,-150.0,0.0003676,2]
[339995304,1728295851538,-150.0,0.00036769,2]
[339995305,1728295851547,-150.0,0.00036769,2]
[339995306,1728295851556,-150.0,0.00036771,2]
[339995307,1728295851566,-1500.0,0.00036775,2]
[339995308,1728295851577,-759.44,0.00036776,3]
[339995309,1728295851587,-379.72,0.00036776,3]
[339995310,1728295851596,-1500.0,0.00036782,2]
[339995311,1728295851605,-150.0,0.00036787,2]
[339995312,1728295851614,-150.0,0.00036802,2]
[339995313,1728295851624,-150.0,0.00036804,2]
[339995314,1728295851633,-500.0,0.00036806,2]
[339995315,1728295851642,-500.0,0.00036806,2]
[339995316,1728295851652,-500.0,0.00036806,2]
[339995317,1728295851661,-500.0,0.00036806,2]
[339995318,1728295851671,-500.0,0.00036806,2]
[339995319,1728295851681,-500.0,0.00036806,2]
[339995320,1728295851690,-150.0,0.00036817,2]
[339995321,1728295851699,-150.0,0.00036823,2]
[339995322,1728295851708,-500.0,0.00036828,3]
[339995323,1728295851718,-150.0,0.0003683,2]
[339995324,1728295851727,-500.0,0.00036836,3]
[339995325,1728295851736,-150.0,0.00036844,2]
[339995326,1728295851745,-150.0,0.00036845,2]
[339995327,1728295851754,-500.0,0.00036845,3]
[339995328,1728295851764,-150.0,0.00036849,2]
[339995329,1728295851773,-500.0,0.00036854,3]
[339995330,1728295851782,-150.0,0.00036855,2]
[339995331,1728295851791,-150.0,0.00036859,2]
[339995332,1728295851801,-150.0,0.0003686,2]
[339995333,1728295851811,-150.0,0.00036861,2]
[339995334,1728295851820,-500.0,0.00036863,3]
[339995335,1728295851829,-3437.809723,0.00036865,7]
[339995336,1728295851840,-3437.809723,0.00036865,7]
[339995337,1728295851849,-150.0,0.00036869,2]
[339995338,1728295851859,-500.0,0.00036872,3]
[339995339,1728295851868,-150.0,0.00036872,2]
[339995340,1728295851877,-1500.0,0.00036878,2]
[339995341,1728295851886,-500.0,0.0003688,3]
[339995342,1728295851895,-150.0,0.00036884,2]
[339995343,1728295851905,-500.0,0.00036889,3]
[339995344,1728295851914,-150.0,0.00036891,2]
[339995345,1728295851923,-150.0,0.00036892,2]
[339995346,1728295851932,-150.0,0.00036896,2]
[339995347,1728295851942,-150.0,0.00036898,2]
[339995348,1728295851951,-500.0,0.00036898,3]
[339995349,1728295851960,-4800.0,0.000369,13]
[339995350,1728295851969,-328.77723865,0.000369,2]
[339995351,1728295851979,-214.31741806,0.000369,7]
[339995352,1728295851988,-1233.92878156,0.000369,2]
[339995353,1728295851997,-26006.97695562,0.00036906,2]
[339995354,1728295852006,-500.0,0.00036907,3]
[339995355,1728295852015,-500.0,0.00036916,3]
[339995356,1728295852024,-1921.901947,0.00036916,7]
[339995357,1728295852033,-1921.901947,0.00036916,7]
[339995358,1728295852042,-500.0,0.00036924,3]
[339995359,1728295852051,-500.0,0.00036933,3]
[339995360,1728295852060,-154.81,0.00036933,2]
[339995361,1728295852069,-150.0,0.00036933,2]
[339995362,1728295852078,-150.0,0.00036933,2]
[339995363,1728295852088,-150.0,0.00036933,2]
[339995364,1728295852097,-150.0,0.00036933,2]
[339995365,1728295852110,-150.0,0.00036933,2]
[339995366,1728295852118,-150.0,0.00036933,2]
[339995367,1728295852127,-150.0,0.00036933,2]
[339995368,1728295852136,-150.0,0.00036933,2]
[339995369,1728295852146,-150.0,0.00036933,2]
[339995370,1728295852156,-150.0,0.00036934,2]
[339995371,1728295852165,-150.0,0.00036937,2]
[339995372,1728295852174,-500.0,0.00036942,3]
[339995373,1728295852185,-150.0,0.00036942,2]
[339995374,1728295852194,-150.0,0.00036943,2]
[339995375,1728295852203,-150.0,0.00036945,2]
[339995376,1728295852212,-500.0,0.00036951,3]
[339995377,1728295852220,-150.0,0.00036957,2]
[339995378,1728295852230,-377.08,0.00036958,2]
[339995379,1728295852239,-500.0,0.0003696,3]
[339995380,1728295852248,-150.0,0.00036963,2]
[339995381,1728295852257,-150.0,0.00036967,2]
[339995382,1728295852266,-500.0,0.00036968,3]
[339995383,1728295852275,-500.0,0.00036977,3]
[339995384,1728295852285,-250.9,0.00036981,120]
[339995385,1728295852294,-1672.63569466,0.00036986,2]
[339995386,1728295852303,-500.0,0.00036986,2]
[339995387,1728295852313,-500.0,0.00036986,2]
[339995388,1728295852322,-500.0,0.00036986,2]
[339995389,1728295852331,-151.0,0.00036986,7]
[339995390,1728295852341,-500.0,0.00036986,2]
[339995391,1728295852351,-500.0,0.00036986,3]
[339995392,1728295852437,-500.0,0.00036986,2]
[339995393,1728295852447,-500.0,0.00036986,2]
[339995394,1728295852455,-879.25,0.00036986,2]
[339995395,1728295852465,-500.0,0.00036986,2]
[339995396,1728295852473,-500.0,0.00036986,2]
[339995397,1728295852482,-151.0,0.00036986,7]
[339995398,1728295852491,-500.0,0.00036986,2]
[339995399,1728295852500,-500.0,0.00036986,2]
[339995400,1728295852509,-832.07,0.00036986,2]
[339995401,1728295852518,-500.0,0.00036986,2]
[339995402,1728295852527,-500.0,0.00036986,2]
[339995403,1728295852537,-500.0,0.00036986,2]
[339995404,1728295852546,-500.0,0.00036986,2]
[339995405,1728295852555,-500.0,0.00036986,2]
[339995406,1728295852564,-500.0,0.00036986,2]
[339995407,1728295852574,-767.12,0.00036986,2]
[339995408,1728295852584,-1284.48,0.00036986,2]
[339995409,1728295852593,-500.0,0.00036986,2]
[339995410,1728295852602,-500.0,0.00036986,2]
[339995411,1728295852612,-500.0,0.00036986,2]
[339995412,1728295852621,-500.0,0.00036986,2]
[339995413,1728295852631,-500.0,0.00036986,2]
[339995414,1728295852640,-1116.95,0.00036986,2]
[339995415,1728295852649,-500.0,0.00036986,2]
[339995416,1728295852659,-500.0,0.00036986,2]
[339995417,1728295852669,-764.7,0.00036986,2]
[339995418,1728295852678,-500.0,0.00036986,2]
[339995419,1728295852687,-594.32411568,0.00036986,2]
[339995420,1728295852807,-181.43588432,0.00036986,2]
[339995421,1728295852817,-326.91411668,0.00036986,2]
[339995422,1728295852828,-173.08588332,0.00036986,2]
[339995423,1728295852841,-500.0,0.00036986,2]
[339995424,1728295852851,-544.42086731,0.00036986,2]
[339995425,1728295852874,-1698.55913269,0.00036986,2]
[339995426,1728295852883,-500.0,0.00036986,2]
[339995427,1728295852892,-365.57386731,0.00036986,2]
[339995428,1728295852903,-134.42613269,0.00036986,2]
[339995429,1728295852913,-500.0,0.00036986,2]
[339995430,1728295852922,-244.75201231,0.00036986,2]
[339995431,1728295852936,-255.24798769,0.00036986,2]
[339995432,1728295852945,-578.66,0.00036986,2]
[339995433,1728295852954,-317.38,0.00036986,2]
[339995434,1728295852964,-500.0,0.00036986,2]
[339995435,1728295852973,-500.0,0.00036986,2]
[339995436,1728295852982,-500.0,0.00036986,2]
[339995437,1728295852991,-560.68,0.00036986,2]
[339995438,1728295853001,-500.0,0.00036986,2]
[339995439,1728295853010,-500.0,0.00036986,2]
[339995440,1728295853019,-500.0,0.00036986,2]
[339995441,1728295853027,-500.0,0.00036986,2]
[339995442,1728295853037,-500.0,0.00036986,2]
[339995443,1728295853046,-500.0,0.00036986,2]
[339995444,1728295853055,-500.0,0.00036986,2]
[339995445,1728295853065,-850.87,0.00036986,2]
[339995446,1728295853074,-500.0,0.00036986,2]
[339995447,1728295853085,-560.68,0.00036986,2]
[339995448,1728295853095,-500.0,0.00036986,2]
[339995449,1728295853108,-500.0,0.00036986,2]
[339995450,1728295853117,-500.0,0.00036986,2]
[339995451,1728295853127,-500.0,0.00036986,2]
[339995452,1728295853137,-535.32,0.00036986,2]
[339995453,1728295853148,-500.0,0.00036986,2]
[339995454,1728295853158,-500.0,0.00036986,2]
[339995455,1728295853168,-500.0,0.00036986,2]
[339995456,1728295853179,-500.0,0.00036986,2]
[339995457,1728295853189,-500.0,0.00036986,2]
[339995458,1728295853199,-500.0,0.00036986,2]
[339995459,1728295853209,-3437.809723,0.00036986,7]
[339995460,1728295853219,-500.0,0.00036986,2]
[339995461,1728295853228,-500.0,0.00036986,2]
[339995462,1728295853238,-3437.809723,0.00036986,7]
[339995463,1728295853248,-500.0,0.00036986,2]
[339995464,1728295853258,-500.0,0.00036986,2]
[339995465,1728295853268,-589.58,0.00036986,2]
[339995466,1728295853278,-660.06,0.00036986,2]
[339995467,1728295853287,-500.0,0.00036986,2]
[339995468,1728295853297,-500.0,0.00036986,2]
[339995469,1728295853307,-500.0,0.00036986,2]
[339995470,1728295853317,-500.0,0.00036986,2]
[339995471,1728295853327,-500.0,0.00036986,2]
[339995472,1728295853337,-500.0,0.00036986,2]
[339995473,1728295853346,-500.0,0.00036986,2]
[339995474,1728295853356,-500.0,0.00036986,2]
[339995475,1728295853365,-504.02,0.00036986,2]
[339995476,1728295853376,-500.0,0.00036986,2]
[339995477,1728295853385,-500.0,0.00036986,2]
[339995478,1728295853395,-500.0,0.00036986,2]
[339995479,1728295853404,-500.0,0.00036986,2]
[339995480,1728295853414,-476.22,0.00036986,2]
[339995481,1728295853423,-587.38,0.00036986,2]
[339995482,1728295853432,-10000.0,0.00036986,7]
[339995483,1728295853441,-500.0,0.00036986,2]
[339995484,1728295853451,-500.0,0.00036986,2]
[339995485,1728295853460,-10000.0,0.00036986,7]
[339995486,1728295853470,-10000.0,0.00036986,7]
[339995487,1728295853480,-500.0,0.00036986,2]
[339995488,1728295853489,-10000.0,0.00036986,7]
[339995489,1728295853498,-500.0,0.00036986,2]
[339995490,1728295853507,-711.71,0.00036986,2]
[339995491,1728295853516,-646.3,0.00036986,2]
[339995492,1728295853526,-500.0,0.00036986,2]
[339995493,1728295853535,-511.23,0.00036986,2]
[339995494,1728295853544,-500.0,0.00036986,2]
[339995495,1728295853554,-500.0,0.00036986,2]
[339995496,1728295853563,-619.93,0.00036986,2]
[339995497,1728295853572,-500.0,0.00036986,2]
[339995498,1728295853582,-419.94,0.00036986,2]
[339995499,1728295853592,-500.0,0.00036986,2]
[339995500,1728295853602,-500.0,0.00036986,2]
[339995501,1728295853611,-500.0,0.00036986,2]
[339995502,1728295853622,-530.54,0.00036986,2]
[339995503,1728295853632,-500.0,0.00036986,2]
[339995504,1728295853642,-500.0,0.00036986,2]
[339995505,1728295853651,-669.98,0.00036986,2]
[339995506,1728295853661,-205.0898571,0.00036986,2]
[339995507,1728295853670,-500.0,0.00036986,2]
[339995508,1728295853680,-500.0,0.00036986,2]
[339995509,1728295853689,-618.29,0.00036986,2]
[339995510,1728295853698,-526.83,0.00036986,2]
[339995511,1728295853707,-560.05,0.00036986,2]
[339995512,1728295853717,-500.0,0.00036986,2]
[339995513,1728295853726,-530.63,0.00036986,2]
[339995514,1728295853735,-628.40308723,0.00036986,2]
[339995515,1728295853744,-736.68,0.00036986,2]
[339995516,1728295853754,-500.0,0.00036986,2]
[339995517,1728295853763,-500.0,0.00036986,2]
[339995518,1728295853772,-323.3,0.00036986,2]
[339995519,1728295853781,-524.29,0.00036986,2]
[339995520,1728295853791,-500.0,0.00036986,2]
[339995521,1728295853801,-500.0,0.00036986,2]
[339995522,1728295853810,-500.0,0.00036986,2]
[339995523,1728295853819,-500.0,0.00036986,2]
[339995524,1728295853828,-500.0,0.00036986,2]
[339995525,1728295853837,-636.06,0.00036986,2]
[339995526,1728295853846,-889.03,0.00036986,2]
[339995527,1728295853856,-500.0,0.00036986,2]
[339995528,1728295853865,-600.6,0.00036986,2]
[339995529,1728295853874,-500.0,0.00036986,2]
[339995530,1728295853884,-500.0,0.00036986,2]
[339995531,1728295853893,-810.09,0.00036986,2]
[339995532,1728295853902,-1346.29,0.00036986,2]
[339995533,1728295853911,-500.0,0.00036986,2]
[339995534,1728295853921,-654.7,0.00036986,2]
[339995535,1728295853931,-500.0,0.00036986,2]
[339995536,1728295853940,-500.0,0.00036986,2]
[339995537,1728295853949,-500.0,0.00036986,2]
[339995538,1728295853958,-500.0,0.00036986,2]
[339995539,1728295853968,-556.24,0.00036986,2]
[339995540,1728295853977,-500.0,0.00036986,2]
[339995541,1728295853986,-500.0,0.00036986,2]
[339995542,1728295853995,-500.0,0.00036986,2]
[339995543,1728295854004,-568.77,0.00036986,2]
[339995544,1728295854013,-605.87,0.00036986,2]
[339995545,1728295854022,-954.06,0.00036986,7]
[339995546,1728295854032,-500.0,0.00036986,2]
[339995547,1728295854041,-539.65,0.00036986,2]
[339995548,1728295854049,-150.0,0.00036995,2]
[339995549,1728295854140,-500.0,0.00036999,2]
[339995550,1728295854150,-50000.0,0.00037,27]
[339995551,1728295854159,-50000.0,0.00037,37]
[339995552,1728295854168,-1800.0,0.00037,38]
[339995553,1728295854179,-151.0,0.00037,7]
[339995554,1728295854188,-3437.809723,0.00037,7]
[339995555,1728295854198,-3437.809724,0.00037,7]
[339995556,1728295854208,-10000.0,0.00037,7]
[339995557,1728295854217,-10000.0,0.00037,7]
[339995558,1728295854226,-10000.0,0.00037,7]
[339995559,1728295854235,-10000.0,0.00037,7]
[339995560,1728295854244,-1921.901947,0.00037,7]
[339995561,1728295854254,-1921.901947,0.00037,7]
[339995562,1728295854263,-151.0,0.00037006,7]
[339995563,1728295854272,-696.1411367,0.00037014,2]
[339995564,1728295854281,-7912.1994571,0.0003711,2]
[339995565,1728295854290,-684.6893235,0.00037135,2]
[339995566,1728295854299,-550.950347,0.00037135,2]
[339995567,1728295854308,-220.60246218,0.0003716,10]
[339995568,1728295854318,-4364.21822894,0.0003716,2]
[339995569,1728295854327,-368.76908784,0.00037188,2]
[339995570,1728295854336,-500.0,0.0003726,2]
[339995571,1728295854346,-500.0,0.0003726,2]
[339995572,1728295854355,-500.0,0.0003726,2]
[339995573,1728295854364,-500.0,0.0003726,2]
[339995574,1728295854373,-500.0,0.0003726,2]
[339995575,1728295854382,-500.0,0.0003726,2]
[339995576,1728295854391,-879.25,0.0003726,2]
[339995577,1728295854401,-500.0,0.0003726,2]
[339995578,1728295854410,-500.0,0.0003726,2]
[339995579,1728295854419,-500.0,0.0003726,2]
[339995580,1728295854428,-500.0,0.0003726,2]
[339995581,1728295854437,-832.07,0.0003726,2]
[339995582,1728295854446,-500.0,0.0003726,2]
[339995583,1728295854455,-500.0,0.0003726,2]
[339995584,1728295854464,-361.18,0.0003726,2]
[339995585,1728295854473,-500.0,0.0003726,2]
[339995586,1728295854482,-500.0,0.0003726,2]
[339995587,1728295854491,-500.0,0.0003726,2]
[339995588,1728295854500,-767.12,0.0003726,2]
[339995589,1728295854510,-1284.48,0.0003726,2]
[339995590,1728295854519,-500.0,0.0003726,2]
[339995591,1728295854527,-500.0,0.0003726,2]
[339995592,1728295854536,-500.0,0.0003726,2]
[339995593,1728295854545,-500.0,0.0003726,2]
[339995594,1728295854554,-500.0,0.0003726,2]
[339995595,1728295854563,-1116.95,0.0003726,2]
[339995596,1728295854572,-500.0,0.0003726,2]
[339995597,1728295854582,-500.0,0.0003726,2]
[339995598,1728295854591,-764.7,0.0003726,2]
[339995599,1728295854601,-500.0,0.0003726,2]
[339995600,1728295854610,-775.76,0.0003726,2]
[339995601,1728295854619,-500.0,0.0003726,2]
[339995602,1728295854628,-500.0,0.0003726,2]
[339995603,1728295854637,-2242.98,0.0003726,2]
[339995604,1728295854646,-500.0,0.0003726,2]
[339995605,1728295854656,-500.0,0.0003726,2]
[339995606,1728295854665,-500.0,0.0003726,2]
[339995607,1728295854674,-500.0,0.0003726,2]
[339995608,1728295854683,-578.66,0.0003726,2]
[339995609,1728295854693,-317.38,0.0003726,2]
[339995610,1728295854702,-500.0,0.0003726,2]
[339995611,1728295854711,-500.0,0.0003726,2]
[339995612,1728295854720,-500.0,0.0003726,2]
[339995613,1728295854729,-560.68,0.0003726,2]
[339995614,1728295854737,-500.0,0.0003726,2]
[339995615,1728295854746,-544.3,0.0003726,2]
[339995616,1728295854756,-500.0,0.0003726,2]
[339995617,1728295854765,-500.0,0.0003726,2]
[339995618,1728295854774,-500.0,0.0003726,2]
[339995619,1728295854784,-500.0,0.0003726,2]
[339995620,1728295854793,-481.1,0.0003726,2]
[339995621,1728295854802,-850.87,0.0003726,2]
[339995622,1728295854811,-500.0,0.0003726,2]
[339995623,1728295854820,-560.68,0.0003726,2]
[339995624,1728295854829,-500.0,0.0003726,2]
[339995625,1728295854839,-500.0,0.0003726,2]
[339995626,1728295854849,-500.0,0.0003726,2]
[339995627,1728295854858,-500.0,0.0003726,2]
[339995628,1728295854867,-500.0,0.0003726,2]
[339995629,1728295854876,-500.0,0.0003726,2]
[339995630,1728295854885,-500.0,0.0003726,2]
[339995631,1728295854894,-500.0,0.0003726,2]
[339995632,1728295854904,-500.0,0.0003726,2]
[339995633,1728295854913,-500.0,0.0003726,2]
[339995634,1728295854923,-500.0,0.0003726,2]
[339995635,1728295854933,-500.0,0.0003726,2]
[339995636,1728295854943,-500.0,0.0003726,2]
[339995637,1728295854952,-211.43674971,0.0003726,2]
[339995638,1728295854962,-589.58,0.0003726,2]
[339995639,1728295854971,-660.06,0.0003726,2]
[339995640,1728295854980,-500.0,0.0003726,2]
[339995641,1728295854990,-500.0,0.0003726,2]
[339995642,1728295854999,-500.0,0.0003726,2]
[339995643,1728295855007,-500.0,0.0003726,2]
[339995644,1728295855017,-500.0,0.0003726,2]
[339995645,1728295855026,-500.0,0.0003726,2]
[339995646,1728295855035,-500.0,0.0003726,2]
[339995647,1728295855045,-500.0,0.0003726,2]
[339995648,1728295855054,-504.02,0.0003726,2]
[339995649,1728295855064,-500.0,0.0003726,2]
[339995650,1728295855073,-500.0,0.0003726,2]
[339995651,1728295855082,-500.0,0.0003726,2]
[339995652,1728295855091,-500.0,0.0003726,2]
[339995653,1728295855103,-587.38,0.0003726,2]
[339995654,1728295855113,-500.0,0.0003726,2]
[339995655,1728295855121,-500.0,0.0003726,2]
[339995656,1728295855130,-500.0,0.0003726,2]
[339995657,1728295855140,-500.0,0.0003726,2]
[339995658,1728295855149,-711.71,0.0003726,2]
[339995659,1728295855158,-646.3,0.0003726,2]
[339995660,1728295855167,-500.0,0.0003726,2]
[339995661,1728295855179,-511.23,0.0003726,2]
[339995662,1728295855188,-500.0,0.0003726,2]
[339995663,1728295855197,-500.0,0.0003726,2]
[339995664,1728295855207,-619.93,0.0003726,2]
[339995665,1728295855216,-500.0,0.0003726,2]
[339995666,1728295855226,-500.0,0.0003726,2]
[339995667,1728295855235,-500.0,0.0003726,2]
[339995668,1728295855244,-500.0,0.0003726,2]
[339995669,1728295855254,-530.54,0.0003726,2]
[339995670,1728295855264,-500.0,0.0003726,2]
[339995671,1728295855274,-500.0,0.0003726,2]
[339995672,1728295855283,-669.98,0.0003726,2]
[339995673,1728295855293,-500.0,0.0003726,2]
[339995674,1728295855303,-500.0,0.0003726,2]
[339995675,1728295855312,-1921.901947,0.0003726,7]
[339995676,1728295855322,-618.29,0.0003726,2]
[339995677,1728295855331,-1921.901947,0.0003726,7]
[339995678,1728295855342,-526.83,0.0003726,2]
[339995679,1728295855351,-560.05,0.0003726,2]
[339995680,1728295855360,-500.0,0.0003726,2]
[339995681,1728295855370,-530.63,0.0003726,2]
[339995682,1728295855379,-736.68,0.0003726,2]
[339995683,1728295855388,-238.78,0.0003726,2]
[339995684,1728295855398,-500.0,0.0003726,2]
[339995685,1728295855407,-524.29,0.0003726,2]
[339995686,1728295855417,-500.0,0.0003726,2]
[339995687,1728295855427,-500.0,0.0003726,2]
[339995688,1728295855436,-500.0,0.0003726,2]
[339995689,1728295855446,-500.0,0.0003726,2]
[339995690,1728295855455,-500.0,0.0003726,2]
[339995691,1728295855464,-636.06,0.0003726,2]
[339995692,1728295855473,-889.03,0.0003726,2]
[339995693,1728295855483,-500.0,0.0003726,2]
[339995694,1728295855493,-600.6,0.0003726,2]
[339995695,1728295855502,-500.0,0.0003726,2]
[339995696,1728295855512,-500.0,0.0003726,2]
[339995697,1728295855521,-810.09,0.0003726,2]
[339995698,1728295855531,-1346.29,0.0003726,2]
[339995699,1728295855540,-500.0,0.0003726,2]
[339995700,1728295855550,-654.7,0.0003726,2]
[339995701,1728295855559,-500.0,0.0003726,2]
[339995702,1728295855568,-366.22,0.0003726,2]
[339995703,1728295855578,-500.0,0.0003726,2]
[339995704,1728295855589,-500.0,0.0003726,2]
[339995705,1728295855599,-556.24,0.0003726,2]
[339995706,1728295855609,-441.92067162,0.0003726,2]
[339995707,1728295855620,-500.0,0.0003726,2]
[339995708,1728295855630,-500.0,0.0003726,2]
[339995709,1728295855640,-568.77,0.0003726,2]
[339995710,1728295855650,-605.87,0.0003726,2]
[339995711,1728295855659,-954.06,0.0003726,7]
[339995712,1728295855668,-500.0,0.0003726,2]
[339995713,1728295855678,-539.65,0.0003726,2]
[339995714,1728295855688,-2000.0,0.00037346,2]
[339995715,1728295855697,-1676.557,0.00037346,2]
[339995716,1728295855707,-152.0,0.000374,3]
[339995717,1728295855783,-11292.086435,0.00037497,15]